bitfinex/quotes_SOLUSD_20250919
["timestamp","ask_amount","ask_price","bid_price","bid_amount"]
[1758270154461,0.06,244.87,244.86,2.23848691]
[1758270154956,0.06,244.87,244.83,4.08430669]
[1758270155127,0.68,244.86,244.82,0.03]
[1758270155328,1.53848691,244.84,244.82,0.03]
[1758270155739,26.68,244.83,244.82,0.03]
[1758270156236,57.96,244.83,244.82,0.03]
[1758270157045,30.76446677,244.83,244.82,0.03]
[1758270157447,62.04446677,244.83,244.82,0.03]
[1758270157652,30.76446677,244.83,244.82,0.03]
[1758270158343,62.04446677,244.83,244.82,0.03]
[1758270158551,30.76446677,244.83,244.82,0.03]
[1758270158749,62.04446677,244.83,244.82,0.03]
[1758270159045,30.76446677,244.83,244.82,0.03]
[1758270159250,62.04446677,244.83,244.82,0.03]
[1758270162031,63.58295368,244.83,244.82,0.03]
[1758270162760,32.30295368,244.83,244.82,0.03]
[1758270162964,63.58295368,244.83,244.82,0.03]
[1758270163732,64.44845267,244.83,244.82,0.03]
[1758270164654,33.16845267,244.83,244.82,0.03]
[1758270164851,62.02446677,244.83,244.82,0.03]
[1758270165046,64.42845267,244.83,244.82,0.03]
[1758270165241,33.16845267,244.83,244.82,0.03]
[1758270165555,64.42845267,244.83,244.82,0.03]
[1758270174774,64.40845267,244.83,244.82,0.03]
[1758270175372,63.72845267,244.83,244.82,0.03]
[1758270175771,64.38845267,244.83,244.82,0.03]
[1758270176274,64.44845267,244.83,244.82,0.03]
[1758270179658,63.78845267,244.83,244.82,0.03]
[1758270180975,32.54845267,244.83,244.82,0.03]
[1758270181175,63.76845267,244.83,244.82,0.03]
[1758270181848,64.48845267,244.83,244.82,0.03]
[1758270182576,33.26845267,244.83,244.82,0.03]
[1758270182874,64.48845267,244.83,244.82,0.03]
[1758270187374,63.76845267,244.83,244.82,0.03]
[1758270190465,64.78995099,244.83,244.82,0.03]
[1758270193257,62.38596509,244.83,244.82,0.03]
[1758270193473,64.78995099,244.83,244.82,0.03]
[1758270197083,64.78995089,244.83,244.82,0.03]
[1758270199084,65.50995089,244.83,244.82,0.03]
[1758270200393,34.28995089,244.83,244.82,0.03]
[1758270200570,65.50995089,244.83,244.82,0.03]
[1758270201974,65.79427403,244.83,244.82,0.03]
[1758270202490,67.4302993,244.83,244.82,0.03]
[1758270203373,81.02589331,244.83,244.82,0.03]
[1758270204191,84.46005407,244.83,244.82,0.03]
[1758270209289,81.02589331,244.83,244.82,0.03]
[1758270217304,81.02598583,244.83,244.82,0.03]
[1758270223813,80.16086884,244.83,244.82,0.03]
[1758270230193,39.59559401,244.8,244.77,0.03]
[1758270230410,4.97853747,244.78,244.77,0.03]
[1758270230594,21.03686924,244.78,244.77,0.03]
[1758270230795,39.59559401,244.74,244.71,0.1]
[1758270231093,73.6603768,244.74,244.71,0.1]
[1758270231292,77.81907776,244.74,244.71,0.1]
[1758270231498,74.3803768,244.74,244.71,0.1]
[1758270231697,77.81907776,244.74,244.71,0.1]
[1758270231894,74.3803768,244.74,244.71,0.1]
[1758270232100,78.46634558,244.74,244.71,0.1]
[1758270232418,92.54740073,244.74,244.71,0.1]
[1758270232800,92.54740073,244.74,244.7,0.03]
[1758270232801,15.41878606,244.71,244.7,0.03]
[1758270232999,47.6603768,244.71,244.7,0.03]
[1758270233206,48.3803768,244.71,244.7,0.03]
[1758270233419,48.38096657,244.71,244.7,0.03]
[1758270234106,54.10439888,244.71,244.7,0.03]
[1758270237324,53.38439888,244.71,244.7,0.75]
[1758270237699,53.38439888,244.71,244.7,0.03]
[1758270238316,54.05439888,244.71,244.7,0.03]
[1758270240802,53.38439888,244.71,244.7,0.03]
[1758270241219,52.36221837,244.71,244.7,0.03]
[1758270241529,5.86559388,244.71,244.7,0.03]
[1758270241824,35.30646969,244.71,244.7,0.75]
[1758270242025,61.30646969,244.71,244.7,0.75]
[1758270242724,30.08646969,244.71,244.7,0.75]
[1758270243127,61.30646969,244.71,244.7,0.75]
[1758270245916,30.08646969,244.71,244.7,0.75]
[1758270246235,26.0,244.71,244.7,0.75]
[1758270247122,4.08613574,244.73,244.7,0.75]
[1758270248639,0.06,244.71,244.7,0.75]
[1758270253317,0.06,244.71,244.7,2.28886891]
[1758270258847,0.06,244.71,244.7,6.3755056]
[1758270260833,0.06,244.71,244.7,2.28886891]
[1758270261544,0.06,244.71,244.7,6.3755056]
[1758270264045,0.06,244.74,244.71,13.59559401]
[1758270264251,0.06,244.74,244.73,1.53886891]
[1758270264749,0.06,244.74,244.73,2.25886891]
[1758270265539,0.06,244.74,244.73,6.34500465]
[1758270272439,0.06,244.74,244.73,37.56500465]
[1758270274474,0.71,244.74,244.71,4.08633241]
[1758270274642,0.71,244.74,244.73,1.53886891]
[1758270274843,0.71,244.74,244.71,4.08633241]
[1758270275054,0.71,244.74,244.73,1.53886891]
[1758270276966,0.06,244.74,244.73,1.53886891]
[1758270277453,0.06,244.74,244.73,6.28500465]
[1758270285869,0.06,244.74,244.73,33.14903155]
[1758270286171,0.06,244.74,244.73,47.0289487]
[1758270286746,0.06,244.74,244.73,44.62605289]
[1758270286963,0.06,244.74,244.73,47.0289487]
[1758270287644,0.06,244.74,244.73,78.2289487]
[1758270289971,0.06,244.74,244.73,47.0289487]
[1758270290170,0.06,244.74,244.73,78.2289487]
[1758270290378,0.06,244.74,244.73,64.34903155]
[1758270294187,0.71,244.74,244.73,33.60289581]
[1758270294357,0.71,244.74,244.73,2.40289581]
[1758270294881,0.71,244.74,244.73,33.60289581]
[1758270295864,0.71,244.74,244.73,37.68903155]
[1758270296497,0.06,244.74,244.73,37.68903155]
[1758270296979,0.76,244.74,244.73,37.68903155]
[1758270297462,0.76,244.74,244.73,6.48903155]
[1758270297664,0.76,244.74,244.73,37.68903155]
[1758270298878,0.76,244.74,244.73,35.28613574]
[1758270299088,0.76,244.74,244.73,37.68903155]
[1758270300901,4.84596987,244.74,244.71,0.03]
[1758270305284,4.08630271,244.72,244.71,0.03]
[1758270305694,4.78630271,244.72,244.71,0.03]
[1758270314908,7.18919852,244.72,244.71,0.03]
[1758270322512,7.24919852,244.72,244.71,0.03]
[1758270325315,4.84630271,244.72,244.71,0.03]
[1758270325522,7.24919852,244.72,244.71,0.03]
[1758270326015,4.84630271,244.72,244.71,0.03]
[1758270326222,6.54919852,244.72,244.71,0.03]
[1758270329031,7.24919852,244.72,244.71,0.03]
[1758270331108,6.54919852,244.72,244.71,0.03]
[1758270331912,7.24919852,244.72,244.71,0.03]
[1758270333431,6.54919852,244.72,244.71,0.03]
[1758270334927,7.24919852,244.72,244.71,0.03]
[1758270335231,6.54919852,244.72,244.71,0.03]
[1758270337040,7.24919852,244.72,244.71,0.03]
[1758270341558,8.27111613,244.72,244.71,0.03]
[1758270345242,7.57111613,244.72,244.71,0.03]
[1758270346722,8.27111613,244.72,244.71,0.03]
[1758270347829,7.40817569,244.72,244.71,0.03]
[1758270348551,6.70817569,244.72,244.71,0.03]
[1758270349957,7.40817569,244.72,244.71,0.03]
[1758270350167,5.16822032,244.72,244.71,0.03]
[1758270350346,6.70817569,244.72,244.71,0.03]
[1758270350953,6.70817569,244.72,244.71,0.74]
[1758270352258,6.70817569,244.72,244.71,0.03]
[1758270352630,6.70817567,244.72,244.71,0.03]
[1758270353437,1.08191759,244.72,244.71,0.74]
[1758270353644,0.06,244.72,244.71,0.74]
[1758270353858,1.08191759,244.72,244.71,0.74]
[1758270354045,0.06,244.72,244.71,0.74]
[1758270355839,0.06,244.72,244.71,2.27995537]
[1758270356157,0.06,244.72,244.71,0.74]
[1758270356338,0.06,244.72,244.71,2.27995537]
[1758270356747,0.06,244.72,244.71,0.74]
[1758270358460,4.80630271,244.72,244.71,0.03]
[1758270358954,5.82818108,244.72,244.71,0.03]
[1758270360769,5.82824694,244.72,244.71,0.03]
[1758270361446,19.70816409,244.72,244.71,0.03]
[1758270362054,26.0,244.69,244.68,0.03]
[1758270362261,59.7618996,244.69,244.68,0.03]
[1758270362438,60.4218996,244.69,244.68,0.03]
[1758270362637,59.39995537,244.69,244.68,0.03]
[1758270364048,66.14581914,244.69,244.68,0.03]
[1758270364258,65.1237217,244.69,244.68,0.03]
[1758270364640,66.14587243,244.69,244.68,0.03]
[1758270364972,80.02578958,244.69,244.68,0.03]
[1758270365334,83.25363733,244.69,244.68,0.03]
[1758270366453,82.2314866,244.69,244.68,0.03]
[1758270374269,13.87991715,244.68,244.64,0.03]
[1758270374459,178.61987252,244.67,244.64,0.03]
[1758270374653,179.27987252,244.67,244.64,0.03]
[1758270375153,191.50082318,244.67,244.64,0.03]
[1758270375559,193.1379868,244.67,244.64,0.03]
[1758270375772,4.08730483,244.66,244.64,0.03]
[1758270376607,5.72446845,244.66,244.64,0.03]
[1758270377560,5.72446845,244.66,244.65,0.71]
[1758270377880,36.92446845,244.66,244.65,0.03]
[1758270378382,37.58446845,244.66,244.65,0.03]
[1758270380169,37.58446845,244.66,244.64,0.03]
[1758270380377,159.53995537,244.65,244.64,0.03]
[1758270380883,165.26459088,244.65,244.64,0.03]
[1758270381383,194.82742726,244.65,244.64,0.71]
[1758270385693,194.82742726,244.65,244.64,0.03]
[1758270386297,62.82742726,244.65,244.64,0.03]
[1758270390397,31.62742726,244.65,244.64,0.03]
[1758270390583,62.82742726,244.65,244.64,0.75]
[1758270393705,62.82742726,244.65,244.64,0.03]
[1758270394004,26.0,244.65,244.64,0.75]
[1758270394175,30.08747189,244.65,244.64,0.75]
[1758270396486,31.62742726,244.65,244.64,0.75]
[1758270396904,30.08747189,244.65,244.64,0.75]
[1758270397214,31.62742726,244.65,244.64,0.75]
[1758270397379,31.62742726,244.65,244.64,0.03]
[1758270398006,31.62742726,244.65,244.64,0.75]
[1758270403113,31.62742726,244.65,244.64,0.03]
[1758270405410,31.62742726,244.65,244.64,0.75]
[1758270406804,31.62742726,244.65,244.64,0.03]
[1758270407808,33.15515062,244.65,244.64,0.03]
[1758270414817,34.85231423,244.65,244.64,0.03]
[1758270418409,35.87454419,244.65,244.64,0.03]
[1758270419417,35.21454419,244.65,244.64,0.03]
[1758270420002,35.92454419,244.65,244.64,0.03]
[1758270420209,67.12454419,244.65,244.64,0.03]
[1758270421022,66.41454419,244.65,244.64,0.03]
[1758270422030,64.00686546,244.65,244.64,0.03]
[1758270422328,65.39231423,244.65,244.64,0.03]
[1758270422738,31.7846355,244.65,244.64,0.74]
[1758270423040,32.55515062,244.65,244.64,0.74]
[1758270425526,30.14747189,244.65,244.64,0.74]
[1758270435117,0.06,244.65,244.64,0.74]
[1758270437241,4.14747189,244.65,244.64,0.74]
[1758270437438,4.14747189,244.65,244.64,0.03]
[1758270439915,4.14747189,244.65,244.64,0.74]
[1758270440434,0.06,244.65,244.64,0.74]
[1758270451721,0.06,244.65,244.64,0.03]
[1758270452040,0.06,244.65,244.64,0.69]
[1758270457939,0.06,244.65,244.64,0.03]
[1758270458140,4.14747189,244.65,244.64,0.03]
[1758270460441,4.81747189,244.65,244.64,0.03]
[1758270461851,6.4546355,244.65,244.64,0.03]
[1758270466757,6.4546355,244.65,244.63,0.03]
[1758270466957,2.40767873,244.64,244.63,0.03]
[1758270467170,33.58767873,244.64,244.63,0.03]
[1758270467344,35.89490935,244.64,244.63,0.03]
[1758270467968,36.91720488,244.64,244.63,0.03]
[1758270468263,41.00484385,244.64,244.63,0.03]
[1758270468565,13.87991715,244.63,244.62,1e-08]
[1758270468753,14.90221268,244.63,244.62,1e-08]
[1758270468954,15.57221268,244.63,244.62,1e-08]
[1758270469162,17.20964437,244.63,244.62,1e-08]
[1758270469673,21.29745044,244.63,244.62,1e-08]
[1758270469849,22.83920333,244.63,244.62,1e-08]
[1758270471149,21.8169078,244.63,244.62,1e-08]
[1758270471544,52.9969078,244.63,244.62,1e-08]
[1758270482558,20.27515491,244.63,244.62,1e-08]
[1758270482869,35.26780607,244.63,244.62,0.72000001]
[1758270483075,61.26780607,244.63,244.62,0.72000001]
[1758270483575,30.08780607,244.63,244.62,0.72000001]
[1758270483771,61.26780607,244.63,244.62,0.72000001]
[1758270487088,62.80955896,244.63,244.62,0.72000001]
[1758270488986,63.49955896,244.63,244.62,1e-08]
[1758270489162,33.26692363,244.63,244.62,0.72000001]
[1758270489575,31.72517074,244.63,244.62,0.72000001]
[1758270490191,30.08780607,244.63,244.62,0.72000001]
[1758270492681,1.60175289,244.65,244.62,0.72000001]
[1758270492682,0.06,244.65,244.62,0.72000001]
[1758270496380,0.06,244.65,244.63,1.54175289]
[1758270496777,0.06,244.65,244.64,0.72]
[1758270498991,0.06,244.65,244.64,4.80763897]
[1758270504906,0.06,244.65,244.64,0.72]
[1758270505097,0.06,244.65,244.62,1e-08]
[1758270505409,0.06,244.65,244.64,0.7]
[1758270507111,0.06,244.65,244.63,1.54175289]
[1758270507112,0.74,244.65,244.62,1e-08]
[1758270507416,4.82747205,244.65,244.62,1e-08]
[1758270510607,4.14747205,244.65,244.62,0.70000001]
[1758270511009,0.06,244.65,244.63,0.7]
[1758270511207,0.06,244.65,244.64,0.7]
[1758270511990,0.06,244.65,244.62,0.70000001]
[1758270512216,0.06,244.65,244.63,0.7]
[1758270512588,0.06,244.65,244.63,2.24175289]
[1758270512901,0.06,244.65,244.63,1.54175289]
[1758270513209,0.06,244.65,244.64,0.7]
[1758270514510,0.06,244.65,244.63,1.54175289]
[1758270514817,0.06,244.65,244.63,2.24175289]
[1758270516608,0.06,244.65,244.62,1e-08]
[1758270516815,0.74,244.65,244.62,1e-08]
[1758270517207,0.74,244.65,244.62,0.70000001]
[1758270517408,0.74,244.65,244.62,1e-08]
[1758270517802,4.1475591,244.65,244.62,0.70000001]
[1758270519000,4.8275591,244.65,244.62,0.70000001]
[1758270519405,0.68,244.64,244.62,1e-08]
[1758270520217,15.90799173,244.65,244.62,1e-08]
[1758270520421,4.1475591,244.65,244.62,0.70000001]
[1758270520595,0.06,244.65,244.63,2.24175289]
[1758270520804,0.06,244.65,244.64,0.7]
[1758270521004,0.06,244.65,244.63,1.54175289]
[1758270521005,0.06,244.65,244.63,2.24175289]
[1758270522295,0.68,244.64,244.62,1e-08]
[1758270522903,4.14747506,244.65,244.62,1e-08]
[1758270523419,0.68,244.64,244.62,1e-08]
[1758270523923,5.68922795,244.65,244.62,1e-08]
[1758270524105,0.68,244.63,244.62,1e-08]
[1758270524505,6.30955896,244.63,244.62,1e-08]
[1758270525108,5.62955896,244.63,244.62,1e-08]
[1758270525313,0.68,244.64,244.62,1e-08]
[1758270525512,2.22175289,244.64,244.62,1e-08]
[1758270526821,6.30939777,244.64,244.62,1e-08]
[1758270529022,1.54175289,244.64,244.62,1e-08]
[1758270529206,1.54175289,244.64,244.62,0.70000001]
[1758270529607,1.54175289,244.64,244.62,1e-08]
[1758270529917,2.4670775,244.65,244.62,0.70000001]
[1758270530237,0.68,244.64,244.62,1e-08]
[1758270530534,2.4070775,244.63,244.62,1e-08]
[1758270534707,3.0870775,244.63,244.62,1e-08]
[1758270535317,29.0870775,244.63,244.62,1e-08]
[1758270535632,33.17488357,244.63,244.62,1e-08]
[1758270536622,34.81204718,244.63,244.62,1e-08]
[1758270539133,48.40764119,244.63,244.62,1e-08]
[1758270539328,48.69196433,244.63,244.62,1e-08]
[1758270540625,49.71437988,244.63,244.62,1e-08]
[1758270541707,145.87991715,244.62,244.61,1e-08]
[1758270542013,177.09991715,244.62,244.61,1e-08]
[1758270542219,177.77991715,244.62,244.61,1e-08]
[1758270542819,179.41748291,244.62,244.61,1e-08]
[1758270543227,183.50545609,244.62,244.61,1e-08]
[1758270546520,51.50545609,244.62,244.61,1e-08]
[1758270552353,39.87991715,244.6,244.59,1e-08]
[1758270552544,73.50699465,244.6,244.59,1e-08]
[1758270552721,74.18699465,244.6,244.59,1e-08]
[1758270553336,75.20948325,244.6,244.59,1e-08]
[1758270553667,76.8471831,244.6,244.59,1e-08]
[1758270554349,80.93549054,244.6,244.59,1e-08]
[1758270557550,32.74849589,244.6,244.59,0.72000001]
[1758270557738,65.35308479,244.6,244.59,0.72000001]
[1758270558233,27.63769985,244.6,244.59,0.72000001]
[1758270558428,4.08829009,244.61,244.59,0.72000001]
[1758270558738,0.06,244.62,244.59,0.72000001]
[1758270559762,4.14804365,244.62,244.59,0.72000001]
[1758270561139,2.4070775,244.61,244.59,0.72000001]
[1758270562752,6.49525176,244.61,244.59,0.72000001]
[1758270566173,4.08817426,244.61,244.59,0.72000001]
[1758270566472,6.49525176,244.61,244.59,0.72000001]
[1758270570374,6.49525176,244.61,244.59,0.67000001]
[1758270574286,6.49525176,244.61,244.6,0.67]
[1758270574862,26.0,244.61,244.6,0.67]
[1758270576472,26.06,244.61,244.6,0.67]
[1758270577978,30.1481403,244.61,244.59,1e-08]
[1758270578147,3.0770775,244.6,244.59,1e-08]
[1758270579477,8.18775602,244.6,244.59,1e-08]
[1758270583869,7.51775602,244.6,244.59,1e-08]
[1758270584071,8.18775602,244.6,244.59,1e-08]
[1758270591891,7.32216902,244.6,244.59,1e-08]
[1758270592384,2.56386158,244.6,244.59,0.67000001]
[1758270593493,6.65216902,244.6,244.59,0.67000001]
[1758270593792,6.65216902,244.6,244.59,1e-08]
[1758270594164,7.32216902,244.6,244.59,1e-08]
[1758270594986,6.65216902,244.6,244.59,1e-08]
[1758270595389,6.71216902,244.6,244.59,1e-08]
[1758270595573,7.40216902,244.6,244.59,1e-08]
[1758270595776,21.28208617,244.6,244.59,1e-08]
[1758270595973,22.91978602,244.6,244.59,1e-08]
[1758270597974,27.08237108,244.6,244.59,0.67000001]
[1758270598182,27.08237108,244.6,244.59,1e-08]
[1758270598183,1.08237108,244.6,244.59,1e-08]
[1758270598369,0.06,244.6,244.59,1e-08]
[1758270598574,1.08237108,244.6,244.59,1e-08]
[1758270598772,1.75237108,244.6,244.59,1e-08]
[1758270598997,1.08237108,244.6,244.59,1e-08]
[1758270599502,5.17067852,244.6,244.59,1e-08]
[1758270600090,5.170658,244.6,244.59,1e-08]
[1758270603602,31.170658,244.6,244.59,1e-08]
[1758270603795,26.06,244.6,244.59,0.67000001]
[1758270604803,30.14830744,244.6,244.59,0.67000001]
[1758270604978,31.17061169,244.6,244.59,1e-08]
[1758270605180,32.71210219,244.6,244.59,1e-08]
[1758270607121,63.93210219,244.6,244.59,1e-08]
[1758270611311,62.39061169,244.6,244.59,1e-08]
[1758270611501,58.30230425,244.6,244.59,0.67000001]
[1758270612408,27.08230425,244.6,244.59,0.67000001]
[1758270612813,31.17061169,244.6,244.59,1e-08]
[1758270613313,31.84061169,244.6,244.59,1e-08]
[1758270613715,33.38210219,244.6,244.59,1e-08]
[1758270622110,32.71210219,244.6,244.59,1e-08]
[1758270622512,33.38210219,244.6,244.59,1e-08]
[1758270628625,6.71210219,244.6,244.59,0.71000001]
[1758270628809,37.91210219,244.6,244.59,0.71000001]
[1758270629015,6.71210219,244.6,244.59,0.71000001]
[1758270637836,6.71210219,244.6,244.59,1e-08]
[1758270647553,5.17061169,244.6,244.59,1e-08]
[1758270647845,6.71210219,244.6,244.59,1e-08]
[1758270649636,7.41210219,244.6,244.59,1e-08]
[1758270650156,6.71210219,244.6,244.59,1e-08]
[1758270651851,7.57889396,244.6,244.59,1e-08]
[1758270654556,8.27889396,244.6,244.59,1e-08]
[1758270654738,7.57889396,244.6,244.59,1e-08]
[1758270661070,8.24889396,244.6,244.59,1e-08]
[1758270665754,22.12881111,244.6,244.59,1e-08]
[1758270665959,25.57246725,244.6,244.59,1e-08]
[1758270666342,23.76651096,244.6,244.59,1e-08]
[1758270666942,27.2101671,244.6,244.59,1e-08]
[1758270667356,23.76651096,244.6,244.59,1e-08]
[1758270669164,26.0,244.56,244.54,0.03]
[1758270669349,166.63058652,244.55,244.54,0.03]
[1758270669666,49.18050367,244.55,244.54,0.03]
[1758270669838,53.26964699,244.55,244.54,0.03]
[1758270670036,53.26964699,244.55,244.47,0.72]
[1758270670037,26.0,244.52,244.47,0.72]
[1758270670237,28.40828227,244.48,244.41,0.1]
[1758270670448,2.40828227,244.45,244.41,0.1]
[1758270671060,2.40828227,244.45,244.42,0.72]
[1758270671265,4.09098347,244.44,244.42,0.72]
[1758270672360,67.5861279,244.48,244.42,0.72]
[1758270672361,14.31668506,244.47,244.42,0.72]
[1758270672537,2.40828227,244.44,244.42,0.72]
[1758270674571,4.09115084,244.43,244.41,0.1]
[1758270675170,4.09115084,244.43,244.42,0.72]
[1758270677665,4.09115084,244.43,244.41,0.1]
[1758270677853,28.40828227,244.42,244.41,0.1]
[1758270678371,26.0,244.42,244.41,0.1]
[1758270678756,28.40828227,244.42,244.41,0.1]
[1758270681561,59.80828227,244.42,244.41,0.1]
[1758270683564,60.47828227,244.42,244.41,0.1]
[1758270684454,64.56960049,244.42,244.41,0.1]
[1758270684654,63.89960049,244.42,244.41,0.1]
[1758270685673,64.61960049,244.42,244.41,0.1]
[1758270687281,64.65960049,244.42,244.41,0.1]
[1758270690979,33.21960049,244.42,244.41,0.1]
[1758270691186,64.63960049,244.42,244.41,0.1]
[1758270691571,78.51951764,244.42,244.41,0.1]
[1758270691773,78.51951764,244.42,244.41,1e-08]
[1758270692089,80.15862678,244.42,244.41,1e-08]
[1758270699411,80.13862678,244.42,244.41,1e-08]
[1758270699892,80.17862678,244.42,244.41,1e-08]
[1758270701385,80.17862678,244.42,244.41,0.06000001]
[1758270701769,80.20862678,244.42,244.41,0.06000001]
[1758270704885,48.76862678,244.42,244.41,0.06000001]
[1758270705089,77.08034451,244.42,244.41,0.06000001]
[1758270705388,79.48862678,244.42,244.41,0.06000001]
[1758270705586,48.76862678,244.42,244.41,0.06000001]
[1758270705788,80.20862678,244.42,244.41,0.06000001]
[1758270705996,48.76862678,244.42,244.41,0.06000001]
[1758270706296,80.20862678,244.42,244.41,0.06000001]
[1758270709297,48.04862678,244.42,244.41,0.06000001]
[1758270709498,48.04862678,244.42,244.41,0.77000001]
[1758270709705,39.58870963,244.42,244.41,0.77000001]
[1758270710204,37.94960049,244.42,244.41,0.77000001]
[1758270711806,37.08512589,244.42,244.41,0.77000001]
[1758270711992,5.66512589,244.42,244.41,0.77000001]
[1758270712194,37.08512589,244.42,244.41,0.77000001]
[1758270712710,37.08512589,244.42,244.41,0.06000001]
[1758270713898,37.80512589,244.42,244.41,0.06000001]
[1758270714195,35.52131822,244.42,244.41,0.06000001]
[1758270714419,37.06512589,244.42,244.41,0.06000001]
[1758270715690,37.72512589,244.42,244.41,0.06000001]
[1758270715885,37.82002446,244.42,244.41,0.06000001]
[1758270716089,38.70383213,244.42,244.41,0.06000001]
[1758270716290,39.42383213,244.42,244.41,0.06000001]
[1758270717498,38.70383213,244.42,244.41,0.06000001]
[1758270718104,39.42383213,244.42,244.41,0.06000001]
[1758270718290,38.70383213,244.42,244.41,0.06000001]
[1758270718691,39.42383213,244.42,244.41,0.06000001]
[1758270718911,38.70383213,244.42,244.41,0.06000001]
[1758270719609,39.42383213,244.42,244.41,0.06000001]
[1758270719797,40.44713978,244.42,244.41,0.06000001]
[1758270720419,39.72713978,244.42,244.41,0.06000001]
[1758270720621,39.72713978,244.42,244.41,0.72000001]
[1758270720800,38.08843354,244.42,244.41,0.72000001]
[1758270721412,38.06843354,244.42,244.41,0.72000001]
[1758270721597,39.70713978,244.42,244.41,0.72000001]
[1758270721800,32.68843354,244.42,244.41,0.72000001]
[1758270722117,64.06843354,244.42,244.41,0.72000001]
[1758270723491,64.06843354,244.42,244.41,0.06000001]
[1758270723695,64.78843354,244.42,244.41,0.06000001]
[1758270724817,65.70713979,244.42,244.41,0.06000001]
[1758270725205,65.70713979,244.42,244.41,0.72000001]
[1758270725622,64.06843354,244.42,244.41,0.72000001]
[1758270726214,64.06843354,244.42,244.41,0.06000001]
[1758270726602,64.78843354,244.42,244.41,0.06000001]
[1758270726920,19.74454302,244.42,244.41,1e-08]
[1758270727217,52.64835069,244.42,244.41,1e-08]
[1758270728111,52.64835069,244.42,244.38,0.06]
[1758270728112,39.87991715,244.39,244.38,0.06]
[1758270728406,78.07885292,244.39,244.38,0.06]
[1758270728606,26.0,244.35,244.31,0.1]
[1758270728914,27.54380767,244.32,244.31,0.76]
[1758270729126,27.54380767,244.32,244.31,0.1]
[1758270729708,59.08380767,244.32,244.31,0.76]
[1758270730236,63.17680046,244.32,244.31,0.76]
[1758270733729,69.35203114,244.32,244.31,0.1]
[1758270733906,70.07203114,244.32,244.31,0.1]
[1758270735130,72.20923076,244.32,244.31,0.1]
[1758270737929,73.23294158,244.32,244.31,0.1]
[1758270738233,86.82853559,244.32,244.31,0.1]
[1758270738532,87.11285873,244.32,244.31,0.1]
[1758270739122,86.39285873,244.32,244.31,0.1]
[1758270739328,86.08914791,244.32,244.31,0.1]
[1758270739734,78.37010956,244.32,244.31,0.1]
[1758270739914,86.08914791,244.32,244.31,0.1]
[1758270740311,86.04914791,244.32,244.31,0.1]
[1758270741411,87.07300141,244.32,244.31,1e-08]
[1758270741610,117.77044738,244.32,244.23,0.66]
[1758270741829,1.54380767,244.24,244.23,0.66]
[1758270742025,37.21814111,244.24,244.23,0.66]
[1758270742313,39.59559401,244.22,244.21,0.1]
[1758270742636,86.39801751,244.22,244.21,0.1]
[1758270742833,93.29324819,244.22,244.21,0.1]
[1758270743022,96.52947518,244.22,244.21,0.1]
[1758270743424,26.0,244.18,244.14,0.66]
[1758270743621,96.52947518,244.22,244.12,0.66]
[1758270743622,26.0,244.14,244.12,0.66]
[1758270743820,59.12380767,244.13,244.12,0.66]
[1758270744039,63.21998593,244.13,244.12,0.66]
[1758270745328,63.21998593,244.13,244.06,0.2]
[1758270745865,31.58,244.12,244.11,0.79]
[1758270746017,31.58,244.12,244.11,0.1]
[1758270746357,31.58,244.12,244.11,0.79]
[1758270746842,31.63998593,244.13,244.11,0.79]
[1758270747041,31.58,244.12,244.11,0.79]
[1758270747712,163.58,244.12,244.11,0.1]
[1758270747917,164.25,244.12,244.11,0.1]
[1758270748840,163.58,244.12,244.11,0.1]
[1758270749918,132.0,244.12,244.11,0.1]
[1758270750228,165.22079004,244.12,244.11,0.1]
[1758270750416,166.76459771,244.12,244.11,0.1]
[1758270752329,135.18459771,244.12,244.11,0.1]
[1758270752625,166.82459771,244.12,244.11,0.1]